Cogmind - Beta 16 @@@ ROGUE MODE // 2025.10.22 @ 21:39:30 Player: Null_error Result: Destroyed by G-34 Mercenary with Small Laser Performance ------------- Evolutions (0) 0 Regions Visited (1) 200 Robots Destroyed (16) 80 Value Destroyed (302) 302 Prototype IDs (0) 0 Alien Tech Used (0) 0 Bonus (0) 0 TOTAL SCORE: 582 Bonus ------- None Cogmind --------- Core Integrity 0/250 Matter 296/300 Energy 100/100 System Corruption 0% Temperature Cool (10) Movement Core (100) Ox1 Location -10/Materials Parts ------- > --- POWER (1) -------- (None) > --- PROPULSION (2) --- (None) > --- UTILITY (2) ------ Small Storage Unit > --- WEAPON (2) ------- Light Assault Rifle > --- INVENTORY (8) ---- Light Ion Engine Light Treads Compact Wheel Heat Sink Structural Scanner Visual Processing Unit ECM Suite Peak State ------------ > --- POWER ------------ Ion Engine > --- PROPULSION ------- Aluminum Leg Aluminum Leg > --- UTILITY ---------- Small Storage Unit Seismic Detector > --- WEAPON ----------- Medium Laser Small Laser > --- INVENTORY -------- Light Ion Engine Light Treads Compact Wheel [Rating: 7] Favorites ----------- Power Ion Engine Engine Ion Engine Propulsion Aluminum Leg Leg Aluminum Leg Wheel Wheel Utility Small Storage Unit Device Seismic Detector Storage Small Storage Unit Weapon Small Laser Energy Gun Small Laser Ballistic Gun Light Assault Rifle Build | -11 -10 ------- Run | Yrd Mat Slots Evolved . | . . Power . | . . Propulsion . | . . Utility . | . . Weapon . | . . Parts Attached 16 | 10 6 Power 2 | 2 . Engine 2 | 2 . Core . | . . Reactor . | . . Propulsion 6 | 3 3 Treads . | . . Leg 5 | 2 3 Wheel 1 | 1 . Hover . | . . Flight . | . . Utility 4 | 2 2 Device 3 | 1 2 Storage 1 | 1 . Processor . | . . Hackware . | . . Protection . | . . Artifact . | . . Weapon 4 | 3 1 Energy Gun 3 | 3 . Energy Cannon . | . . Ballistic Gun 1 | . 1 Ballistic Cannon . | . . Launcher . | . . Special Weapon . | . . Impact Weapon . | . . Slashing Weapon . | . . Piercing Weapon . | . . Special Melee Weapon . | . . Unidentified Prototypes . | . . Parts Lost 7 | . 7 Power 1 | . 1 Propulsion 3 | . 3 Utility 1 | . 1 Weapon 2 | . 2 Highest Loss Streak 4 | . 4 To Critical Strikes . | . . Average Backups 6 | 2 6 Power . | . 1 Propulsion 2 | 1 2 Utility 2 | . 3 Weapon . | . . Tool/Special . | . . Unused Backups 5 | . 5 Power . | . . Propulsion 2 | . 2 Utility 3 | . 3 Weapon . | . . Tool/Special . | . . Average Slot Usage (%) 93 | . 93 Engine 13 | . 13 Leg 25 | . 25 Device 14 | . 14 Storage 14 | . 14 Energy Gun 23 | . 23 Peak Build Rating 7 | 7 7 Average Rating 6 | 4 6 On Entrance 3 | . 7 Avg Prop Armor Cover (%) 6 | 6 . Naked Turns . | . . Heaviest Build 14 | 14 14 Greatest Support 20 | 20 20 Greatest Overweight (x) 2 | 1 2 Average Overweight (x) . | . . Largest Inventory Capacity 8 | 8 8 Average Capacity 7 | 6 8 Most Carried 8 | 3 8 Average Carried 6 | 2 6 Final Capacity 8 | 8 8 Final Carried 7 | 3 7 Class Distribution -------------------- 100% | Mutant Dominant Class ---------------- Mutant | -10/Materials Resources | -11 -10 ----------- Run | Yrd Mat Matter Collected 350 | 271 79 Remotely . | . . Salvage Created 494 | 101 393 Parts 24 | 5 19 Haulers Intercepted 1 | . 1 Recyclers Shooed . | . . Parts Field Recycled . | . . Retrieved Matter . | . . Parts Self-Destructed . | . . Prevented . | . . Parts Restored . | . . Kills | -11 -10 ------- Run | Yrd Mat Combat Hostiles Destroyed 9 | . 9 Guns 9 | . 9 Classes Destroyed 7 | 2 5 Worker 1 | . 1 Tunneler 2 | 2 . Hauler 1 | . 1 Recycler 1 | 1 . Watcher 2 | . 2 Swarmer 3 | . 3 Grunt 6 | . 6 Best Kill Streak 4 | 2 4 Combat Bots Only 3 | . 3 Max Kills in Single Turn 1 | 1 1 Gunslinging . | . . Exploded . | . . Melee . | . . Uniques/NPCs Destroyed . | . . Combat | -11 -10 -------- Run | Yrd Mat Hostile Shots Fired 108 | . 108 Missed 32 | . 32 Hits 76 | . 76 Projectile 76 | . 76 Critical Strikes 2 | . 2 Damage Taken 928 | . 928 Core 256 | . 256 Absorbed by Shields . | . . Core Remaining (%) 100 | 100 . Volleys Fired 58 | 3 55 Largest 2 | 2 2 Hottest 90 | 90 90 Shots Fired 100 | 6 94 Gun 100 | 6 94 Cannon . | . . Launcher . | . . Special . | . . Kinetic 9 | . 9 Thermal 91 | 6 85 Explosive . | . . Electromagnetic . | . . Robot Hit Streak 9 | 5 9 Robot Miss Streak 3 | 1 3 Penetration Max . | . . Secondary Targets . | . . Shots Hit Robots 63 | 5 58 Core Hits 28 | 4 24 Critical Kills . | . . Critical Parts Destroyed . | . . Critical Strikes 1 | . 1 Burn 1 | . 1 Melee Attacks . | . . Impact . | . . Slashing . | . . Piercing . | . . Sneak Attacks . | . . Combat Hostiles . | . . Follow-up Attacks . | . . Damage Inflicted 788 | 71 717 Guns 788 | 71 717 Cannons . | . . Explosions . | . . Melee . | . . Ramming . | . . Kinetic 56 | . 56 Thermal 732 | 71 661 Explosive . | . . Electromagnetic . | . . Impact . | . . Slashing . | . . Piercing . | . . Highest Corruption . | . . Average Corruption . | . . Corruption Purged . | . . Corruption Blocked . | . . Overload Shots . | . . Overflow Damage . | . . Projectiles . | . . Explosions . | . . Melee . | . . Knockbacks . | . . Impact . | . . Kinetic . | . . Secondary . | . . Self-Inflicted Damage . | . . Shots . | . . Rammed . | . . Targets Rammed . | . . Kicked . | . . Crushed . | . . Highest Temperature 315 | 60 315 Average Temperature 97 | 27 101 Received Heat Transfer 522 | . 522 Effects 4 | . 4 Interference 4 | . 4 Siege Activations . | . . Martial Activations . | . . Shielding Activations . | . . Robots Disrupted . | . . Combat Hostiles . | . . Robots Corrupted . | . . Combat Hostiles . | . . Parts Fried . | . . Impact Corruptions . | . . Robots Melted . | . . Combat Hostiles . | . . Parts Melted 1 | . 1 Heat Transferred 1922 | 186 1736 Parts Sabotaged . | . . Parts Stolen . | . . Parts Stripped . | . . Power Chain Reactions . | . . Alert | -11 -10 ------- Run | Yrd Mat Maximum Alert Level . | . . Low Security (%) 100 | 100 100 Level 1 . | . . Level 2 . | . . Level 3 . | . . Level 4 . | . . Level 5 . | . . High Security . | . . Max Security . | . . Peak Influence 103 | 10 103 Initial . | . . Average 27 | 2 30 Influence Increases 286 | 15 271 Destroy 0b10 Robot/C 180 | . 180 Destroy 0b10 Robot/NC 35 | 15 20 Destroy Leader 46 | . 46 Successful Hack 10 | . 10 Lose Combat Pursuer 15 | . 15 Influence Decreases 286 | 15 271 Time Decay 231 | 15 216 Lost Part 55 | . 55 Squads Dispatched 2 | . 2 Investigation 1 | . 1 Extermination . | . . Reinforcement 1 | . 1 Assault . | . . Garrison . | . . Intercept . | . . Searches Triggered . | . . Construction Impeded . | . . Haulers Reinforced . | . . Active Scanning Responses . | . . Cargo Convoy Interrupts . | . . Stealth | -11 -10 --------- Run | Yrd Mat Distress Signals 3 | . 3 Communications Jammed . | . . Distress Signals . | . . Times Spotted 17 | . 17 Peak Tracking Total 5 | . 5 Tactical Retreats 1 | . 1 Traps | -11 -10 ------- Run | Yrd Mat Traps Triggered 1 | . 1 Indirectly . | . . Trap Hack Attempts . | . . Triggered . | . . Disarmed . | . . Reprogrammed . | . . Reused . | . . Traps Extracted . | . . Installed . | . . Triggered . | . . Machines | -11 -10 ---------- Run | Yrd Mat Machines Disabled . | . . Max in Single Turn . | . . Machines Repaired . | . . Machines Dismantled . | . . Machines Sabotaged . | . . Overloaded Fab Kills . | . . Hacking | -11 -10 --------- Run | Yrd Mat Machines Accessed 3 | . 3 Terminals 3 | . 3 Fabricators . | . . Repair Stations . | . . Recycling Units . | . . Scanalyzers . | . . Garrison Access . | . . Total Hacks 9 | . 9 Successful 5 | . 5 Failed 4 | . 4 Catastrophic 1 | . 1 Database Lockouts . | . . Manual 9 | . 9 Terminals 9 | . 9 Fabricators . | . . Repair Stations . | . . Recycling Units . | . . Scanalyzers . | . . Garrison Access . | . . Terminal Hacks 2 | . 2 Robot Analysis 2 | . 2 Fabricator Hacks . | . . Repair Station Hacks . | . . Recycling Unit Hacks . | . . Scanalyzer . | . . Garrison Access Hacks . | . . Unauthorized Hacks 3 | . 3 Terminals 3 | . 3 Skim 3 | . 3 Fabricators . | . . Repair Stations . | . . Recycling Units . | . . Scanalyzers . | . . Garrison Access . | . . Data Cores Recovered . | . . Used . | . . Hacking Detections 3 | . 3 Full Trace Events . | . . Feedback Events . | . . Feedback Blocked . | . . Robot Schematics Acquired . | . . Robots Built . | . . Authchips . | . . Time . | . . Total Robot Build Rating . | . . Part Schematics Acquired . | . . Parts Built . | . . Authchips . | . . Time . | . . Total Part Build Rating . | . . Part Studies Acquired . | . . Parts Repaired . | . . Time . | . . Parts Recycled . | . . Recycled Matter . | . . Retrieved Matter . | . . Retrieved Components . | . . Parts Scanalyzed . | . . Part Schematics Acquired . | . . Parts Damaged . | . . Bothacking | -11 -10 ------------ Run | Yrd Mat Used RIF Installer . | . . Robots Hacked . | . . Non-combat . | . . Combat . | . . Robot Hacks Applied . | . . Relay Couplers Released . | . . Fabnet Peak Effective % . | . . Robots Rewired . | . . Allies Hacked . | . . Hacks Repelled . | . . Allies | -11 -10 -------- Run | Yrd Mat Total Allies . | . . Largest Group . | . . Highest-Rated Group . | . . Highest-Rated Ally . | . . Total Orders . | . . Ally Attacks . | . . Total Damage . | . . Kills . | . . Allies Corrupted . | . . Allies Melted . | . . Intel | -11 -10 ------- Run | Yrd Mat Active Infowar (turns) 506 | 16 490 Structural 2 | . 2 Seismic 504 | 16 488 Robot Analysis Total 2 | . 2 Derelict Logs Recovered . | . . Drone Launches . | . . Drone Recoveries . | . . Exploration | -11 -10 ------------- Run | Yrd Mat Turns Passed 708 | 91 617 Spaces Moved 391 | 67 324 Core 14 | 13 1 Treads . | . . Legs 359 | 36 323 Wheels 18 | 18 . Hover . | . . Flight . | . . Fastest Speed 50 | 50 120 Average Speed 122 | 97 127 Slowest Speed 190 | 120 190 Overloaded Moves . | . . Propulsion Burnouts . | . . Robots Hopped . | . . Potential Cave-ins . | . . Cave-ins Triggered . | . . Exploration Rate (%) 23 | 5 41 Regions Visited 1 Branch Regions . Pre-discovered Areas . | . . Known Exits Taken . | . . Unknown Exits Taken 1 | 1 . Scrap Searched . | . . Spaces Dug . | . . Terrain Destroyed . | . . Melee . | . . Projectile . | . . AOE . | . . Terrain Rammed . | . . Walls Destroyed . | . . Machines Disabled . | . . Actions | -11 -10 --------- Run | Yrd Mat Total 517 | 81 436 Wait 42 | . 42 Move 390 | 66 324 Hop . | . . Pick Up 6 | 2 4 Fast Attach 8 | 7 1 Attach 1 | . 1 Detach . | . . Swap 9 | 3 6 Drop 3 | . 3 Fire 58 | 3 55 Melee . | . . Ram . | . . Kick . | . . Crush . | . . Escape Stasis . | . . Rewire . | . . Trap . | . . Miscellaneous . | . . Route ------- -11/Scrapyard -10/Materials (discovered 1 exit: [*Mat]) History --------- Turn | Location | Event 31 | -11/Scrapyard | Discovered new exit (range 15) 92 | -11/Scrapyard | Entered Materials 317 | -10/Materials | Build established: Mutant 400 | -10/Materials | Discovered new exit (range 14) 602 | -10/Materials | Core integrity fell below 50% 662 | -10/Materials | Lost 4 parts (2n2w) 701 | -10/Materials | Core integrity fell below 20% 709 | -10/Materials | Destroyed by G-34 Mercenary with Small Laser Last Messages --------------- 00564_ S-10 Pest destroyed. 00576_ R-06 Scavenger collects Lgt. Ion Engine. 00579_ S-10 Pest destroyed. 00579_ R-06 Scavenger collects Lgt. Ion Engine. 00582_ Overheating: System interference. 00582_ Seismic Detector temporarily disabled. 00590_ Med. Laser destroyed. 00590_ Critical hit (Burn: +37). 00597_ G-34 Mercenary suffers critical hit (Burn). 00609_ Aluminum Leg destroyed. 00629_ Sml. Laser destroyed. 00631_ Aluminum Leg destroyed. 00691_ Acquired Lgt. Assault Rifle. [Achievement: There's More Where That Came From] 00692_ Ion Engine destroyed. 00696_ Aluminum Leg destroyed. 00704_ Seismic Detector destroyed. 00704_ Critical hit (Burn: +37). Map ----- +----------------------------------------------------+ | ???????????????????????????????????????????# #???? | | ???????????????????????????????????????##### #???? | | ???????????????????????????????????????# ##### | | ???????????????????????????????????????# | | ???????????????????????????????????????# % | | ???????????????????????????????????????# | | ???????????????????????????????????????# ##### | | ???????????????????????????????????????## % ##???? | | ????????????????????????????????????????# #????? | | ????????????????????????????????????????# %#????? | | ????????????????????????????????????????# ###### | | ????????????????????????????????????????#% + | | ???????????????????????????????????????###+####### | | ???????????????????????????????????????# % ## | | ???????????????????????????????????????# """ ""## | | ???????????????????????????????????????# """ Y"## | | ???????????????????????????????????????# """ ""## | | ???????????????????????????????????????# ## | | ??????????????????????????????##???????###+####### | | ??????????????????????????????? ?###????# # # | | ???????????????????????????????# ##???# # T # | | ????????????????????????????????? #???# # # | | ????????????????????????###########+###??# # # | | ????????????????????????# g # #### # " | | ????????????????????????# """ # # | | ????????????????????????#@ """ + + """ " | | ????????????????????????# g""" # # """ # | | ????????????????????????# # ### ## """ # | | ????????????????????????# """ ## ####/## """ # | | ????????????????????????# """ ## # # # | | ????????????????????????# """ ## / "" # # | | ????????????????????????# ## # "" ####### | | ????????????????????????# ## # "T #???### | | ????????????????????????# ###### "" #?????? | | ????????????????????????#########????# "" #?????? | | ?????????????????????????????????????# #?????? | | ?????????????????????????????????????# #?????? | | ?????????????????????????????????????#######?????? | | ?????????????????????????????????????????????????? | | | | | | | | | | | | | | | | | | | | | | | +----------------------------------------------------+ Best States ------------- Heat Dissipation 25 Energy Generation 10 Energy Capacity 250 Matter Stores 300 Matter Capacity 300 Sight Range 16 Terrain Scan Density 10 Evasion (%) 55 Item Schematics ----------------- None Robot Schematics ------------------ None Fabricated ------------ Nothing Repaired ---------- Nothing Studied --------- None Alien Tech Used ----------------- None Achievements -------------- DATA ERROR: Steam Global Achievement% Organ Harvest There's More Where That Came From Challenges ------------ None Game ------ Seed ShrapnelSwordWheel Manual? 0 Play Time 00:07:27 Cumulative 75.7 hours Start 2025.10.22 @ 21:32:42 End 2025.10.22 @ 21:39:30 Sessions 1 Manual Loads 0 Difficulty Rogue Special Mode None Game No. 93 Rogue 93 Adventurer 0 Explorer 0 Win Type - Total 1 Types 1/0/0/0/0/0/0/0/0/0 Lore% 26 Gallery% 46 Achievement% 19 Wizard Run 0 Options --------- Layout 1 ASCII 0 Keyboard 1 Movement Numpad Keybinds 0 Fullscreen 1 Font 24/Smallcaps Map View 50x35 Zoom Use 4% Tactical HUD 1 Map Filters NONE Filters LOW_CONTRAST(5,10,15) Steam 1 RUN: a5fa7448-cc70-4b99-aa65-c1ddb842011d